fUST/lending_fUST_20240610
["ID","MTS","AMOUNT","RATE_DAILY","PERIOD"]
[328942348,1718017871126,-500.0,0.00022739,2]
[328942349,1718017871136,-500.0,0.00022739,2]
[328942350,1718017871146,-500.0,0.00022739,2]
[328942351,1718017871156,-745.57,0.00022739,2]
[328942352,1718017871167,-2541.57,0.00022739,2]
[328942353,1718017871177,-718.15,0.00022739,2]
[328942354,1718017871187,-1718.23,0.00022739,2]
[328942355,1718017871198,-500.0,0.00022739,2]
[328942356,1718017871208,-1630.78,0.00022739,2]
[328942357,1718017871218,-500.0,0.00022739,2]
[328942358,1718017871229,-2581.48,0.00022739,2]
[328942359,1718017871239,-1854.18,0.00022739,2]
[328942360,1718017871248,-974.29,0.00022739,2]
[328942361,1718017871258,-500.0,0.00022739,2]
[328942362,1718017871269,-500.0,0.00022739,2]
[328942363,1718017871279,-581.41,0.00022739,2]
[328942364,1718017871290,-743.32,0.00022739,2]
[328942365,1718017871300,-1659.56,0.00022739,2]
[328942366,1718017871310,-942.18,0.00022739,2]
[328942367,1718017871320,-1793.3,0.00022739,2]
[328942368,1718017871330,-883.56,0.00022739,2]
[328942369,1718017871339,-500.0,0.00022739,2]
[328942370,1718017871349,-912.13,0.00022739,2]
[328942371,1718017871359,-2898.78,0.00022739,2]
[328942372,1718017871370,-3207.7,0.00022739,2]
[328942373,1718017871380,-640.571761,0.00022739,2]
[328942374,1718017871391,-500.0,0.00022739,2]
[328942375,1718017871401,-575.55,0.00022739,2]
[328942376,1718017871410,-619.3,0.00022739,2]
[328942377,1718017871421,-500.0,0.00022739,2]
[328942378,1718017871431,-1228.65,0.00022739,2]
[328942379,1718017871442,-1301.62,0.00022739,2]
[328942380,1718017871451,-500.0,0.00022739,2]
[328942381,1718017871462,-500.0,0.00022739,2]
[328942382,1718017871472,-1649.78,0.00022739,2]
[328942383,1718017871483,-1068.0,0.000228,7]
[328942384,1718017871494,-166.666666,0.00022944,2]
[328942385,1718017871504,-2122.90871287,0.00023,2]
[328942386,1718017871514,-207.11489985,0.00023,2]
[328942387,1718017871524,-155.01395126,0.00023,2]
[328942388,1718017871533,-366.13399876,0.00023,2]
[328942389,1718017871543,-187997.50111052,0.00023,10]
[328942390,1718017871553,-1132.56,0.00023013,2]
[328942391,1718017871563,-559.44,0.00023013,2]
[328942392,1718017871573,-605.11,0.00023013,4]
[328942393,1718017871583,-501.41,0.00023013,2]
[328942394,1718017871593,-500.0,0.00023013,2]
[328942395,1718017871603,-500.0,0.00023013,2]
[328942396,1718017871612,-500.0,0.00023013,2]
[328942397,1718017871622,-500.0,0.00023013,2]
[328942398,1718017871632,-1535.29,0.00023013,2]
[328942399,1718017871642,-500.0,0.00023013,2]
[328942400,1718017871651,-570.25,0.00023013,2]
[328942401,1718017871661,-640.85,0.00023013,2]
[328942402,1718017871671,-1349.56,0.00023013,2]
[328942403,1718017871682,-594.1,0.00023013,2]
[328942404,1718017871692,-1198.99,0.00023013,2]
[328942405,1718017871824,-1205.29,0.00023013,2]
[328942406,1718017871834,-1488.6,0.00023013,2]
[328942407,1718017871844,-735.49,0.00023013,2]
[328942408,1718017871854,-550.47,0.00023013,2]
[328942409,1718017871868,-810.63,0.00023013,2]
[328942410,1718017871879,-500.0,0.00023013,2]
[328942411,1718017871889,-249.8,0.00023013,2]
[328942412,1718017871899,-1112.03,0.00023013,2]
[328942413,1718017871910,-523.01,0.00023013,2]
[328942414,1718017871920,-1567.95,0.00023013,2]
[328942415,1718017871930,-699.03,0.00023013,2]
[328942416,1718017871942,-746.26,0.00023013,2]
[328942417,1718017871954,-625.63,0.00023013,2]
[328942418,1718017871963,-500.0,0.00023013,2]
[328942419,1718017871974,-929.91,0.00023013,2]
[328942420,1718017871984,-500.0,0.00023013,2]
[328942421,1718017871993,-1607.76,0.00023013,2]
[328942422,1718017872003,-524.71439149,0.00023013,2]
[328942423,1718017872013,-500.0,0.00023013,2]
[328942424,1718017872023,-1323.18,0.00023013,2]
[328942425,1718017872034,-500.0,0.00023013,2]
[328942426,1718017872044,-1044.77,0.00023013,2]
[328942427,1718017872055,-2042.85,0.00023013,2]
[328942428,1718017872066,-500.0,0.00023013,2]
[328942429,1718017872077,-500.0,0.00023013,2]
[328942430,1718017872087,-500.0,0.00023013,2]
[328942431,1718017872097,-500.0,0.00023013,2]
[328942432,1718017872107,-894.2,0.00023013,2]
[328942433,1718017872118,-633.2,0.00023013,2]
[328942434,1718017872128,-500.0,0.00023013,2]
[328942435,1718017872139,-500.0,0.00023013,2]
[328942436,1718017872149,-207.19361884,0.00023013,2]
[328942437,1718017872159,-1885.28,0.00023013,2]
[328942438,1718017872170,-500.0,0.00023013,2]
[328942439,1718017872180,-2127.33,0.00023013,2]
[328942440,1718017872191,-500.0,0.00023013,2]
[328942441,1718017872200,-541.01,0.00023013,2]
[328942442,1718017872210,-2259.44,0.00023013,2]
[328942443,1718017872221,-500.0,0.00023013,2]
[328942444,1718017872232,-1295.58,0.00023013,2]
[328942445,1718017872242,-500.94,0.00023013,2]
[328942446,1718017872252,-500.0,0.00023013,2]
[328942447,1718017872262,-500.0,0.00023013,2]
[328942448,1718017872272,-500.0,0.00023013,2]
[328942449,1718017872282,-1526.46,0.00023013,2]
[328942450,1718017872292,-687.81,0.00023013,2]
[328942451,1718017872302,-1005.98,0.00023013,2]
[328942452,1718017872312,-500.0,0.00023013,2]
[328942453,1718017872321,-1149.01,0.00023013,2]
[328942454,1718017872333,-1037.55,0.00023013,2]
[328942455,1718017872343,-1219.19,0.00023013,2]
[328942456,1718017872353,-500.0,0.00023013,2]
[328942457,1718017872363,-617.04,0.00023013,2]
[328942458,1718017872373,-771.11,0.00023013,2]
[328942459,1718017872384,-500.0,0.00023013,2]
[328942460,1718017872394,-574.48,0.00023013,2]
[328942461,1718017872404,-623.45,0.00023013,2]
[328942462,1718017872414,-500.0,0.00023013,2]
[328942463,1718017872423,-500.0,0.00023013,2]
[328942464,1718017872433,-500.0,0.00023013,2]
[328942465,1718017872443,-745.57,0.00023013,2]
[328942466,1718017872453,-2541.57,0.00023013,2]
[328942467,1718017872462,-718.15,0.00023013,2]
[328942468,1718017872472,-1718.23,0.00023013,2]
[328942469,1718017872482,-500.0,0.00023013,2]
[328942470,1718017872491,-1630.78,0.00023013,2]
[328942471,1718017872501,-500.0,0.00023013,2]
[328942472,1718017872510,-2581.48,0.00023013,2]
[328942473,1718017872521,-1854.18,0.00023013,2]
[328942474,1718017872531,-974.29,0.00023013,2]
[328942475,1718017872540,-500.0,0.00023013,2]
[328942476,1718017872550,-500.0,0.00023013,2]
[328942477,1718017872560,-581.41,0.00023013,2]
[328942478,1718017872569,-743.32,0.00023013,2]
[328942479,1718017872579,-1659.56,0.00023013,2]
[328942480,1718017872589,-942.18,0.00023013,2]
[328942481,1718017872601,-1793.3,0.00023013,2]
[328942482,1718017872610,-883.56,0.00023013,2]
[328942483,1718017872620,-500.0,0.00023013,2]
[328942484,1718017872629,-912.13,0.00023013,2]
[328942485,1718017872639,-2898.78,0.00023013,2]
[328942486,1718017872648,-3207.7,0.00023013,2]
[328942487,1718017872657,-464.43241486,0.00023013,2]
[328942488,1718017872668,-575.55,0.00023013,2]
[328942489,1718017872678,-619.3,0.00023013,2]
[328942490,1718017872688,-500.0,0.00023013,2]
[328942491,1718017872700,-1228.65,0.00023013,2]
[328942492,1718017872709,-1301.62,0.00023013,2]
[328942493,1718017872719,-500.0,0.00023013,2]
[328942494,1718017872729,-1132.56,0.00023287,2]
[328942495,1718017872738,-559.44,0.00023287,2]
[328942496,1718017872748,-605.11,0.00023287,4]
[328942497,1718017872758,-501.41,0.00023287,2]
[328942498,1718017872767,-500.0,0.00023287,2]
[328942499,1718017872777,-500.0,0.00023287,2]
[328942500,1718017872786,-463.27680263,0.00023287,2]
[328942501,1718017872796,-500.0,0.00023287,2]
[328942502,1718017872805,-1535.29,0.00023287,2]
[328942503,1718017872815,-500.0,0.00023287,2]
[328942504,1718017872825,-570.25,0.00023287,2]
[328942505,1718017872835,-640.85,0.00023287,2]
[328942506,1718017872845,-1349.56,0.00023287,2]
[328942507,1718017872855,-594.1,0.00023287,2]
[328942508,1718017872870,-1198.99,0.00023287,2]
[328942509,1718017872880,-1205.29,0.00023287,2]
[328942510,1718017872891,-1488.6,0.00023287,2]
[328942511,1718017872903,-735.49,0.00023287,2]
[328942512,1718017872913,-550.47,0.00023287,2]
[328942513,1718017872923,-810.63,0.00023287,2]
[328942514,1718017872933,-500.0,0.00023287,2]
[328942515,1718017872947,-249.8,0.00023287,2]
[328942516,1718017872957,-1112.03,0.00023287,2]
[328942517,1718017872967,-523.01,0.00023287,2]
[328942518,1718017872976,-1567.95,0.00023287,2]
[328942519,1718017872986,-699.03,0.00023287,2]
[328942520,1718017872995,-746.26,0.00023287,2]
[328942521,1718017873005,-625.63,0.00023287,2]
[328942522,1718017873015,-500.0,0.00023287,2]
[328942523,1718017873025,-929.91,0.00023287,2]
[328942524,1718017873034,-500.0,0.00023287,2]
[328942525,1718017873044,-1607.76,0.00023287,2]
[328942526,1718017873054,-500.0,0.00023287,2]
[328942527,1718017873063,-1323.18,0.00023287,2]
[328942528,1718017873073,-500.0,0.00023287,2]
[328942529,1718017873083,-1044.77,0.00023287,2]
[328942530,1718017873093,-2042.85,0.00023287,2]
[328942531,1718017873103,-500.0,0.00023287,2]
[328942532,1718017873114,-500.0,0.00023287,2]
[328942533,1718017873123,-500.0,0.00023287,2]
[328942534,1718017873134,-500.0,0.00023287,2]
[328942535,1718017873144,-894.2,0.00023287,2]
[328942536,1718017873153,-633.2,0.00023287,2]
[328942537,1718017873163,-500.0,0.00023287,2]
[328942538,1718017873174,-644.18683418,0.00023287,2]
[328942539,1718017873185,-1885.28,0.00023287,2]
[328942540,1718017873196,-500.0,0.00023287,2]
[328942541,1718017873206,-2127.33,0.00023287,2]
[328942542,1718017873216,-500.0,0.00023287,2]
[328942543,1718017873226,-541.01,0.00023287,2]
[328942544,1718017873237,-2259.44,0.00023287,2]
[328942545,1718017873247,-500.0,0.00023287,2]
[328942546,1718017873257,-1295.58,0.00023287,2]
[328942547,1718017873267,-500.94,0.00023287,2]
[328942548,1718017873277,-500.0,0.00023287,2]
[328942549,1718017873287,-500.0,0.00023287,2]
[328942550,1718017873296,-500.0,0.00023287,2]
[328942551,1718017873306,-1526.46,0.00023287,2]
[328942552,1718017873316,-687.81,0.00023287,2]
[328942553,1718017873326,-1005.98,0.00023287,2]
[328942554,1718017873336,-500.0,0.00023287,2]
[328942555,1718017873346,-1149.01,0.00023287,2]
[328942556,1718017873356,-1037.55,0.00023287,2]
[328942557,1718017873366,-1219.19,0.00023287,2]
[328942558,1718017873375,-500.0,0.00023287,2]
[328942559,1718017873386,-617.04,0.00023287,2]
[328942560,1718017873396,-771.11,0.00023287,2]
[328942561,1718017873406,-500.0,0.00023287,2]
[328942562,1718017873416,-574.48,0.00023287,2]
[328942563,1718017873426,-623.45,0.00023287,2]
[328942564,1718017873436,-500.0,0.00023287,2]
[328942565,1718017873446,-500.0,0.00023287,2]
[328942566,1718017873457,-309.36720837,0.00023287,2]
[328942567,1718017873467,-745.57,0.00023287,2]
[328942568,1718017873478,-2541.57,0.00023287,2]
[328942569,1718017873492,-718.15,0.00023287,2]
[328942570,1718017873502,-1718.23,0.00023287,2]
[328942571,1718017873512,-500.0,0.00023287,2]
[328942572,1718017873522,-1630.78,0.00023287,2]
[328942573,1718017873532,-500.0,0.00023287,2]
[328942574,1718017873542,-2581.48,0.00023287,2]
[328942575,1718017873553,-1854.18,0.00023287,2]
[328942576,1718017873563,-974.29,0.00023287,2]
[328942577,1718017873573,-500.0,0.00023287,2]
[328942578,1718017873585,-500.0,0.00023287,2]
[328942579,1718017873596,-581.41,0.00023287,2]
[328942580,1718017873606,-743.32,0.00023287,2]
[328942581,1718017873616,-1659.56,0.00023287,2]
[328942582,1718017873627,-942.18,0.00023287,2]
[328942583,1718017873638,-1793.3,0.00023287,2]
[328942584,1718017873649,-500.0,0.00023287,2]
[328942585,1718017873659,-883.56,0.00023287,2]
[328942586,1718017873669,-912.13,0.00023287,2]
[328942587,1718017873679,-2898.78,0.00023287,2]
[328942588,1718017873690,-3207.7,0.00023287,2]
[328942589,1718017873702,-575.55,0.00023287,2]
[328942590,1718017873712,-619.3,0.00023287,2]
[328942591,1718017873722,-500.0,0.00023287,2]
[328942592,1718017873732,-1228.65,0.00023287,2]
[328942593,1718017873743,-1301.62,0.00023287,2]
[328942594,1718017873754,-500.0,0.00023287,2]
[328942595,1718017873765,-153.0,0.00023288,2]
[328942596,1718017873775,-153.0,0.00023288,2]
[328942597,1718017873786,-153.0,0.00023288,2]
[328942598,1718017873797,-153.0,0.00023288,2]
[328942599,1718017873807,-169.352305,0.00023408,2]
[328942600,1718017873818,-166.666666,0.00023456,2]
[328942601,1718017873828,-1132.56,0.00023561,2]
[328942602,1718017873839,-559.44,0.00023561,2]
[328942603,1718017873849,-605.11,0.00023561,4]
[328942604,1718017873861,-501.41,0.00023561,2]
[328942606,1718017873874,-500.0,0.00023561,2]
[328942607,1718017873885,-614.59243708,0.00023561,2]
[328942609,1718017873895,-500.0,0.00023561,2]
[328942610,1718017873907,-1535.29,0.00023561,2]
[328942611,1718017873918,-500.0,0.00023561,2]
[328942613,1718017873928,-570.25,0.00023561,2]
[328942614,1718017873941,-640.85,0.00023561,2]
[328942615,1718017873954,-1349.56,0.00023561,2]
[328942616,1718017873965,-594.1,0.00023561,2]
[328942617,1718017873975,-1198.99,0.00023561,2]
[328942618,1718017874075,-1205.29,0.00023561,2]
[328942619,1718017874086,-1488.6,0.00023561,2]
[328942620,1718017874098,-735.49,0.00023561,2]
[328942621,1718017874108,-550.47,0.00023561,2]
[328942622,1718017874118,-810.63,0.00023561,2]
[328942623,1718017874129,-500.0,0.00023561,2]
[328942624,1718017874141,-249.8,0.00023561,2]
[328942625,1718017874151,-1112.03,0.00023561,2]
[328942626,1718017874161,-523.01,0.00023561,2]
[328942627,1718017874172,-1567.95,0.00023561,2]
[328942628,1718017874182,-699.03,0.00023561,2]
[328942629,1718017874192,-746.26,0.00023561,2]
[328942630,1718017874203,-625.63,0.00023561,2]
[328942631,1718017874213,-438.71743889,0.00023561,2]
[328942632,1718017874223,-929.91,0.00023561,2]
[328942633,1718017874233,-500.0,0.00023561,2]
[328942634,1718017874243,-1607.76,0.00023561,2]
[328942635,1718017874253,-500.0,0.00023561,2]
[328942636,1718017874264,-1323.18,0.00023561,2]
[328942637,1718017874274,-500.0,0.00023561,2]
[328942638,1718017874284,-1044.77,0.00023561,2]
[328942639,1718017874295,-2042.85,0.00023561,2]
[328942640,1718017874305,-500.0,0.00023561,2]
[328942641,1718017874315,-500.0,0.00023561,2]
[328942642,1718017874326,-500.0,0.00023561,2]
[328942643,1718017874336,-500.0,0.00023561,2]
[328942644,1718017874346,-894.2,0.00023561,2]
[328942645,1718017874356,-633.2,0.00023561,2]
[328942646,1718017874366,-500.0,0.00023561,2]
[328942647,1718017874377,-1885.28,0.00023561,2]
[328942648,1718017874388,-500.0,0.00023561,2]
[328942649,1718017874398,-2127.33,0.00023561,2]
[328942650,1718017874408,-405.25976823,0.00023561,2]
[328942651,1718017874419,-541.01,0.00023561,2]
[328942652,1718017874429,-2259.44,0.00023561,2]
[328942653,1718017874439,-1295.58,0.00023561,2]
[328942654,1718017874450,-500.94,0.00023561,2]
[328942655,1718017874460,-500.0,0.00023561,2]
[328942656,1718017874470,-500.0,0.00023561,2]
[328942657,1718017874480,-500.0,0.00023561,2]
[328942658,1718017874490,-1526.46,0.00023561,2]
[328942659,1718017874500,-687.81,0.00023561,2]
[328942660,1718017874510,-1005.98,0.00023561,2]
[328942661,1718017874521,-457.77543426,0.00023561,2]
[328942662,1718017874532,-1149.01,0.00023561,2]
[328942663,1718017874542,-1037.55,0.00023561,2]
[328942664,1718017874552,-1219.19,0.00023561,2]
[328942665,1718017874562,-500.0,0.00023561,2]
[328942666,1718017874572,-617.04,0.00023561,2]
[328942667,1718017874582,-771.11,0.00023561,2]
[328942668,1718017874592,-500.0,0.00023561,2]
[328942669,1718017874603,-574.48,0.00023561,2]
[328942670,1718017874612,-623.45,0.00023561,2]
[328942671,1718017874622,-515.29911687,0.00023561,2]
[328942672,1718017874631,-500.0,0.00023561,2]
[328942673,1718017874642,-745.57,0.00023561,2]
[328942674,1718017874652,-2541.57,0.00023561,2]
[328942675,1718017874663,-718.15,0.00023561,2]
[328942676,1718017874673,-1718.23,0.00023561,2]
[328942677,1718017874684,-500.0,0.00023561,2]
[328942678,1718017874695,-1630.78,0.00023561,2]
[328942679,1718017874705,-500.0,0.00023561,2]
[328942680,1718017874715,-2581.48,0.00023561,2]
[328942681,1718017874726,-1854.18,0.00023561,2]
[328942682,1718017874736,-974.29,0.00023561,2]
[328942683,1718017874746,-500.0,0.00023561,2]
[328942684,1718017874757,-500.0,0.00023561,2]
[328942685,1718017874768,-581.41,0.00023561,2]
[328942686,1718017874779,-743.32,0.00023561,2]
[328942687,1718017874790,-1659.56,0.00023561,2]
[328942688,1718017874801,-942.18,0.00023561,2]
[328942689,1718017874812,-1793.3,0.00023561,2]
[328942690,1718017874822,-500.0,0.00023561,2]
[328942691,1718017874833,-883.56,0.00023561,2]
[328942692,1718017874844,-912.13,0.00023561,2]
[328942693,1718017874854,-2898.78,0.00023561,2]
[328942694,1718017874869,-3207.7,0.00023561,2]
[328942695,1718017874879,-575.55,0.00023561,2]
[328942696,1718017874889,-619.3,0.00023561,2]
[328942697,1718017874900,-500.0,0.00023561,2]
[328942698,1718017874912,-1228.65,0.00023561,2]
[328942699,1718017874923,-1301.62,0.00023561,2]
[328942700,1718017874933,-500.0,0.00023561,2]
[328942701,1718017874945,-620.00008996,0.00023604,2]
[328942702,1718017874957,-1132.56,0.00023835,2]
[328942703,1718017874967,-559.44,0.00023835,2]
[328942704,1718017874977,-605.11,0.00023835,4]
[328942705,1718017874988,-501.41,0.00023835,2]
[328942706,1718017874999,-500.0,0.00023835,2]
[328942707,1718017875009,-500.0,0.00023835,2]
[328942708,1718017875019,-1535.29,0.00023835,2]
[328942709,1718017875030,-500.0,0.00023835,2]
[328942710,1718017875040,-570.25,0.00023835,2]
[328942711,1718017875051,-640.85,0.00023835,2]
[328942712,1718017875062,-1349.56,0.00023835,2]
[328942713,1718017875072,-594.1,0.00023835,2]
[328942714,1718017875082,-1198.99,0.00023835,2]
[328942715,1718017875092,-1205.29,0.00023835,2]
[328942716,1718017875103,-1488.6,0.00023835,2]
[328942717,1718017875114,-735.49,0.00023835,2]
[328942718,1718017875124,-550.47,0.00023835,2]
[328942719,1718017875134,-810.63,0.00023835,2]
[328942720,1718017875145,-500.0,0.00023835,2]
[328942721,1718017875155,-249.8,0.00023835,2]
[328942722,1718017875166,-1112.03,0.00023835,2]
[328942723,1718017875176,-523.01,0.00023835,2]
[328942724,1718017875187,-1567.95,0.00023835,2]
[328942725,1718017875197,-699.03,0.00023835,2]
[328942726,1718017875207,-746.26,0.00023835,2]
[328942727,1718017875218,-625.63,0.00023835,2]
[328942728,1718017875228,-929.91,0.00023835,2]
[328942729,1718017875238,-500.0,0.00023835,2]
[328942730,1718017875248,-1607.76,0.00023835,2]
[328942731,1718017875258,-500.0,0.00023835,2]
[328942732,1718017875269,-1323.18,0.00023835,2]
[328942733,1718017875279,-500.0,0.00023835,2]
[328942734,1718017875289,-1044.77,0.00023835,2]
[328942735,1718017875301,-2042.85,0.00023835,2]
[328942736,1718017875311,-500.0,0.00023835,2]
[328942737,1718017875322,-500.0,0.00023835,2]
[328942738,1718017875332,-500.0,0.00023835,2]
[328942739,1718017875342,-224.9877186,0.00023835,2]
[328942740,1718017875352,-894.2,0.00023835,2]
[328942741,1718017875362,-633.2,0.00023835,2]
[328942742,1718017875374,-500.0,0.00023835,2]
[328942743,1718017875384,-1885.28,0.00023835,2]
[328942744,1718017875394,-500.0,0.00023835,2]
[328942745,1718017875404,-2127.33,0.00023835,2]
[328942746,1718017875414,-541.01,0.00023835,2]
[328942747,1718017875425,-2259.44,0.00023835,2]
[328942748,1718017875435,-1295.58,0.00023835,2]
[328942749,1718017875445,-500.94,0.00023835,2]
[328942750,1718017875456,-500.0,0.00023835,2]
[328942751,1718017875466,-500.0,0.00023835,2]
[328942752,1718017875476,-500.0,0.00023835,2]
[328942753,1718017875486,-1526.46,0.00023835,2]
[328942754,1718017875496,-687.81,0.00023835,2]
[328942755,1718017875506,-1005.98,0.00023835,2]
[328942756,1718017875516,-1149.01,0.00023835,2]
[328942757,1718017875527,-1037.55,0.00023835,2]
[328942758,1718017875538,-1219.19,0.00023835,2]
[328942759,1718017875550,-500.0,0.00023835,2]
[328942760,1718017875560,-617.04,0.00023835,2]
[328942761,1718017875571,-771.11,0.00023835,2]
[328942762,1718017875582,-500.0,0.00023835,2]
[328942763,1718017875592,-574.48,0.00023835,2]
[328942764,1718017875602,-623.45,0.00023835,2]
[328942765,1718017875612,-500.0,0.00023835,2]
[328942766,1718017875623,-745.57,0.00023835,2]
[328942767,1718017875634,-2541.57,0.00023835,2]
[328942768,1718017875644,-718.15,0.00023835,2]
[328942769,1718017875654,-1718.23,0.00023835,2]
[328942770,1718017875664,-500.0,0.00023835,2]
[328942771,1718017875675,-1630.78,0.00023835,2]
[328942772,1718017875684,-500.0,0.00023835,2]
[328942773,1718017875694,-2581.48,0.00023835,2]
[328942774,1718017875705,-1854.18,0.00023835,2]
[328942775,1718017875715,-974.29,0.00023835,2]
[328942776,1718017875725,-500.0,0.00023835,2]
[328942777,1718017875736,-500.0,0.00023835,2]
[328942778,1718017875746,-581.41,0.00023835,2]
[328942779,1718017875757,-743.32,0.00023835,2]
[328942780,1718017875768,-1659.56,0.00023835,2]
[328942781,1718017875778,-942.18,0.00023835,2]
[328942782,1718017875789,-1793.3,0.00023835,2]
[328942783,1718017875800,-500.0,0.00023835,2]
[328942784,1718017875810,-883.56,0.00023835,2]
[328942785,1718017875820,-912.13,0.00023835,2]
[328942786,1718017875830,-2898.78,0.00023835,2]
[328942787,1718017875840,-3207.7,0.00023835,2]
[328942788,1718017875852,-575.55,0.00023835,2]
[328942789,1718017875867,-619.3,0.00023835,2]
[328942790,1718017875878,-500.0,0.00023835,2]
[328942791,1718017875888,-1228.65,0.00023835,2]
[328942792,1718017875899,-1301.62,0.00023835,2]
[328942793,1718017875910,-500.0,0.00023835,2]
[328942794,1718017875920,-172.32552541,0.000239,2]
[328942795,1718017875932,-166.666666,0.00023969,2]
[328942796,1718017875945,-285.0,0.00024,2]
[328942797,1718017875956,-31889.44500545,0.00024,2]
[328942798,1718017875967,-67777.2214456,0.00024,5]
[328942799,1718017875977,-176.35,0.000241,7]
[328942800,1718017875988,-1132.56,0.00024109,2]
[328942801,1718017875998,-559.44,0.00024109,2]
[328942802,1718017876009,-605.11,0.00024109,4]
[328942803,1718017876019,-501.41,0.00024109,2]
[328942804,1718017876029,-500.0,0.00024109,2]
[328942805,1718017876040,-500.0,0.00024109,2]
[328942806,1718017876050,-1535.29,0.00024109,2]
[328942807,1718017876060,-500.0,0.00024109,2]
[328942808,1718017876070,-570.25,0.00024109,2]
[328942809,1718017876080,-640.85,0.00024109,2]
[328942810,1718017876090,-1349.56,0.00024109,2]
[328942811,1718017876183,-594.1,0.00024109,2]
[328942812,1718017876194,-1198.99,0.00024109,2]
[328942813,1718017876204,-1205.29,0.00024109,2]
[328942814,1718017876215,-1488.6,0.00024109,2]
[328942815,1718017876224,-735.49,0.00024109,2]
[328942816,1718017876234,-550.47,0.00024109,2]
[328942817,1718017876244,-810.63,0.00024109,2]
[328942818,1718017876255,-500.0,0.00024109,2]
[328942819,1718017876266,-249.8,0.00024109,2]
[328942820,1718017876276,-1112.03,0.00024109,2]
[328942821,1718017876286,-523.01,0.00024109,2]
[328942822,1718017876297,-1567.95,0.00024109,2]
[328942823,1718017876307,-699.03,0.00024109,2]
[328942824,1718017876317,-746.26,0.00024109,2]
[328942825,1718017876326,-625.63,0.00024109,2]
[328942826,1718017876336,-929.91,0.00024109,2]
[328942827,1718017876346,-500.0,0.00024109,2]
[328942828,1718017876356,-1607.76,0.00024109,2]
[328942829,1718017876366,-500.0,0.00024109,2]
[328942830,1718017876376,-1323.18,0.00024109,2]
[328942831,1718017876386,-500.0,0.00024109,2]
[328942832,1718017876396,-1044.77,0.00024109,2]
[328942833,1718017876407,-2042.85,0.00024109,2]
[328942834,1718017876417,-500.0,0.00024109,2]
[328942835,1718017876427,-500.0,0.00024109,2]
[328942836,1718017876437,-500.0,0.00024109,2]
[328942837,1718017876448,-894.2,0.00024109,2]
[328942838,1718017876458,-633.2,0.00024109,2]
[328942839,1718017876468,-500.0,0.00024109,2]
[328942840,1718017876478,-1885.28,0.00024109,2]
[328942841,1718017876488,-500.0,0.00024109,2]
[328942842,1718017876499,-2127.33,0.00024109,2]
[328942843,1718017876508,-541.01,0.00024109,2]
[328942844,1718017876519,-2259.44,0.00024109,2]
[328942845,1718017876529,-1295.58,0.00024109,2]
[328942846,1718017876540,-500.94,0.00024109,2]
[328942847,1718017876550,-500.0,0.00024109,2]
[328942848,1718017876566,-500.0,0.00024109,2]
[328942849,1718017876576,-636.88261773,0.00024109,2]
[328942850,1718017876586,-1526.46,0.00024109,2]